bitfinex/quotes_BTCUSD_20250803
["timestamp","ask_amount","ask_price","bid_price","bid_amount"]
[1754184077673,0.162723,113240.0,113230.0,0.04032]
[1754184078549,0.0348564,113240.0,113230.0,0.04032]
[1754184078753,0.162723,113240.0,113230.0,0.04032]
[1754184087152,0.16263469,113240.0,113230.0,0.04032]
[1754184090557,0.02647469,113240.0,113230.0,0.04032]
[1754184090840,0.13612,113250.0,113230.0,0.04032]
[1754184091052,0.17097386,113250.0,113230.0,0.04032]
[1754184091181,0.13612,113250.0,113240.0,0.00299]
[1754184091396,0.13612,113250.0,113240.0,0.00511]
[1754184091600,0.13612,113250.0,113240.0,0.03629]
[1754184091923,0.162679,113260.0,113240.0,0.03629]
[1754184092124,0.18755657,113260.0,113240.0,0.0333]
[1754184092322,0.52755657,113260.0,113250.0,1e-08]
[1754184092658,0.52958432,113260.0,113250.0,0.03118001]
[1754184094503,0.51299927,113260.0,113250.0,0.03118001]
[1754184094730,0.51299927,113260.0,113250.0,0.03118]
[1754184094731,0.52957553,113260.0,113250.0,0.03118]
[1754184094885,0.52957552,113260.0,113250.0,0.03118]
[1754184095088,0.51299927,113260.0,113250.0,0.03118]
[1754184095956,0.5645022,113260.0,113250.0,0.03118]
[1754184096165,0.58107514,113260.0,113250.0,0.03118]
[1754184096365,0.5810751,113260.0,113250.0,0.03118]
[1754184096573,0.58107517,113260.0,113250.0,0.03118]
[1754184097194,0.57278265,113260.0,113250.0,0.03118]
[1754184097408,0.56449583,113260.0,113250.0,0.03118]
[1754184097817,0.5129929,113260.0,113250.0,0.03118]
[1754184098034,0.5129929,113260.0,113250.0,0.03417]
[1754184099393,0.5129929,113260.0,113250.0,0.03118]
[1754184100385,0.52956298,113260.0,113250.0,0.03118]
[1754184100584,0.5129929,113260.0,113250.0,0.03118]
[1754184100786,0.56449519,113260.0,113250.0,0.03118]
[1754184101666,0.58106528,113260.0,113250.0,0.03118]
[1754184101883,0.5129929,113260.0,113250.0,0.03118]
[1754184104461,0.52956351,113260.0,113250.0,0.03118]
[1754184106752,0.51299233,113260.0,113250.0,0.03118]
[1754184106955,0.37687233,113260.0,113250.0,0.03629]
[1754184107189,0.51295233,113260.0,113250.0,0.03629]
[1754184107614,0.37687233,113260.0,113250.0,0.03629]
[1754184107820,0.51295233,113260.0,113250.0,0.03629]
[1754184108511,0.37687233,113260.0,113250.0,0.03629]
[1754184108736,0.51295233,113260.0,113250.0,0.03629]
[1754184108950,0.56721223,113260.0,113250.0,0.03118]
[1754184109184,0.5672133,113260.0,113250.0,0.03118]
[1754184110058,0.52952607,113260.0,113250.0,0.03118]
[1754184110482,0.52952629,113260.0,113250.0,0.03118]
[1754184110699,0.16296729,113260.0,113250.0,0.03118]
[1754184111129,0.18952529,113260.0,113250.0,0.03118]
[1754184111944,0.18952573,113260.0,113250.0,0.03118]
[1754184116315,0.2586813,113260.0,113250.0,0.03118]
[1754184116535,0.19155573,113260.0,113240.0,0.03118]
[1754184116753,0.19155573,113260.0,113230.0,0.03118]
[1754184116754,0.00203,113250.0,113230.0,0.03118]
[1754184116977,0.13604,113240.0,113230.0,0.03118]
[1754184117205,0.13802,113240.0,113230.0,0.03118]
[1754184117860,0.13802,113240.0,113230.0,0.03218]
[1754184118284,0.13802,113240.0,113230.0,0.03118]
[1754184118694,0.13802,113240.0,113230.0,0.03218]
[1754184118896,0.13802,113240.0,113230.0,0.03118]
[1754184119110,0.13802,113240.0,113230.0,0.03218]
[1754184119759,0.13802,113240.0,113230.0,0.03318]
[1754184120166,0.13802,113240.0,113230.0,0.0384]
[1754184120607,0.13604,113240.0,113230.0,0.0384]
[1754184127536,0.162601,113250.0,113230.0,0.0384]
[1754184127748,0.03485074,113250.0,113230.0,0.0384]
[1754184127947,0.17089074,113250.0,113230.0,0.0384]
[1754184128212,0.03485074,113250.0,113230.0,0.0384]
[1754184128482,0.17089074,113250.0,113240.0,0.00316]
[1754184128735,0.17287074,113250.0,113240.0,0.00316]
[1754184128972,5.420525,113260.0,113240.0,0.00522]
[1754184129100,0.04314038,113260.0,113240.0,0.03618]
[1754184129343,0.54314038,113260.0,113240.0,0.03618]
[1754184129999,0.13604,113250.0,113240.0,0.03618]
[1754184131812,0.13604,113250.0,113240.0,0.03718]
[1754184132995,0.13604,113250.0,113240.0,0.03818]
[1754184134669,0.136,113260.0,113240.0,0.03818]
[1754184134875,0.15257942,113260.0,113240.0,0.0383232]
[1754184135415,0.15257942,113260.0,113240.0,0.0362632]
[1754184135416,8e-05,113250.0,113240.0,0.0362632]
[1754184135613,8e-05,113250.0,113240.0,0.0311032]
[1754184136875,8e-05,113250.0,113240.0,0.0321032]
[1754184137081,8e-05,113250.0,113240.0,0.0011432]
[1754184137914,8e-05,113250.0,113240.0,0.0021432]
[1754184138875,8e-05,113250.0,113240.0,0.0331032]
[1754184139087,0.50008,113250.0,113240.0,0.0021432]
[1754184139296,0.56814088,113250.0,113240.0,0.0021432]
[1754184139448,0.01666214,113250.0,113240.0,0.0021432]
[1754184139665,0.51666214,113250.0,113240.0,0.0021432]
[1754184139864,0.51666214,113250.0,113240.0,0.0011432]
[1754184140102,0.01666214,113250.0,113240.0,0.0011432]
[1754184140322,0.01666214,113250.0,113240.0,0.0321032]
[1754184140863,0.02495331,113250.0,113240.0,0.0321032]
[1754184141110,0.02495331,113250.0,113240.0,0.0311032]
[1754184142474,0.02495331,113250.0,113240.0,0.0363232]
[1754184142475,0.02487331,113250.0,113240.0,0.0363232]
[1754184142690,0.16087331,113250.0,113240.0,0.0363232]
[1754184143601,0.14437117,113250.0,113240.0,0.0363232]
[1754184143806,0.16095389,113250.0,113240.0,0.0342632]
[1754184144640,0.16095389,113250.0,113240.0,0.0311032]
[1754184144852,0.16095451,113250.0,113240.0,0.0311032]
[1754184145078,0.5,113250.0,113240.0,0.0311032]
[1754184145288,0.026562,113260.0,113240.0,0.0311032]
[1754184145497,4.762286,113250.0,113240.0,0.0311032]
[1754184145664,4.762286,113250.0,113240.0,0.0342632]
[1754184146337,0.136,113250.0,113240.0,0.0342632]
[1754184146548,0.136,113250.0,113240.0,0.0363232]
[1754184146874,4.898286,113250.0,113240.0,0.0363232]
[1754184147081,0.136,113250.0,113240.0,0.0363232]
[1754184147700,4.788846,113270.0,113240.0,0.0363232]
[1754184147904,0.136,113260.0,113240.0,0.0331632]
[1754184148101,0.136,113260.0,113250.0,0.00316]
[1754184148449,0.136,113260.0,113250.0,0.03618]
[1754184148647,4.762286,113260.0,113250.0,0.03618]
[1754184148854,0.136,113260.0,113250.0,0.03618]
[1754184149828,0.02656,113270.0,113250.0,0.03618]
[1754184150040,0.136,113260.0,113250.0,0.03618]
[1754184150236,4.762286,113260.0,113250.0,0.03618]
[1754184150621,0.13596,113260.0,113250.0,0.03618]
[1754184154329,0.52656,113270.0,113250.0,0.03618]
[1754184154330,0.13596,113260.0,113250.0,0.03618]
[1754184154564,0.13596,113260.0,113250.0,0.03302]
[1754184155212,0.5,113270.0,113250.0,0.03614]
[1754184155434,0.13596,113260.0,113250.0,0.03402]
[1754184155786,0.13596,113260.0,113250.0,0.03502]
[1754184155987,0.13596,113260.0,113250.0,0.03814]
[1754184156200,0.13596,113260.0,113250.0,0.03714]
[1754184157031,0.14424783,113260.0,113250.0,0.03714]
[1754184158850,0.14424783,113260.0,113250.0,0.03814]
[1754184162232,0.00828783,113260.0,113250.0,0.03814]
[1754184162433,0.13596,113260.0,113250.0,0.03814]
[1754184173782,0.14424743,113260.0,113250.0,0.03814]
[1754184175825,0.13596,113260.0,113250.0,0.03814]
[1754184177427,0.14425329,113260.0,113250.0,0.03814]
[1754184179299,0.13596,113260.0,113250.0,0.03814]
[1754184182405,0.14425296,113260.0,113250.0,0.03814]
[1754184183050,0.13596,113260.0,113250.0,0.03814]
[1754184183266,0.1442531,113260.0,113250.0,0.03814]
[1754184184952,0.1441731,113260.0,113250.0,0.03814]
[1754184185165,0.13588,113270.0,113250.0,0.03814]
[1754184185390,0.14417364,113270.0,113260.0,0.00294]
[1754184185617,0.14417364,113270.0,113260.0,0.03735]
[1754184186252,0.00829364,113270.0,113260.0,0.03735]
[1754184186469,0.17124341,113280.0,113260.0,0.03735]
[1754184186687,0.17953354,113280.0,113270.0,0.00294]
[1754184186913,0.04365354,113280.0,113270.0,0.03735]
[1754184187606,0.03536341,113280.0,113270.0,0.03735]
[1754184187819,0.13588,113290.0,113270.0,0.03735]
[1754184188054,0.14416605,113290.0,113280.0,0.00294]
[1754184188286,0.14416605,113290.0,113280.0,0.03735]
[1754184188499,0.13588,113290.0,113280.0,0.03735]
[1754184189158,0.15125123,113290.0,113280.0,0.03535]
[1754184190002,0.15125123,113290.0,113280.0,0.03635]
[1754184190241,0.01537123,113290.0,113280.0,0.03635]
[1754184190671,0.01537123,113290.0,113280.0,0.05379902]
[1754184190893,0.01537123,113290.0,113280.0,0.06845704]
[1754184191106,0.01537123,113290.0,113280.0,0.15808988]
[1754184191557,0.01537123,113290.0,113280.0,0.15588296]
[1754184192185,0.01537123,113290.0,113280.0,0.03735]
[1754184194553,0.01537123,113290.0,113280.0,0.03955692]
[1754184195377,0.01537123,113290.0,113280.0,0.03735]
[1754184195587,0.01537123,113290.0,113280.0,0.03955692]
[1754184200998,0.01537123,113290.0,113280.0,0.12818976]
[1754184201981,0.01537123,113290.0,113280.0,0.15459274]
[1754184202382,0.00047758,113290.0,113280.0,0.48486788]
[1754184202767,0.00047758,113290.0,113280.0,0.49709649]
[1754184203421,0.00047758,113290.0,113280.0,0.49609649]
[1754184203850,0.00047758,113290.0,113280.0,0.49509649]
[1754184204072,0.00047758,113290.0,113280.0,0.49909649]
[1754184204287,0.00047758,113290.0,113280.0,0.48766096]
[1754184205303,0.00047758,113290.0,113280.0,0.51266096]
[1754184208400,0.00047758,113290.0,113280.0,0.46953484]
[1754184208883,0.00047758,113290.0,113280.0,0.58029484]
[1754184209877,0.00047758,113290.0,113280.0,0.59512684]
[1754184211001,0.00047758,113290.0,113280.0,0.45936684]
[1754184211218,0.00047758,113290.0,113280.0,0.59512684]
[1754184214465,0.00047758,113290.0,113280.0,0.90795296]
[1754184215344,0.00047758,113290.0,113280.0,0.59512684]
[1754184215576,0.00047758,113290.0,113280.0,0.90795296]
[1754184216469,0.00047758,113290.0,113280.0,0.93295296]
[1754184216931,0.00047758,113290.0,113280.0,1.29795296]
[1754184217151,0.00047758,113290.0,113280.0,1.32487603]
[1754184218446,0.00047758,113290.0,113280.0,1.05517603]
[1754184218651,0.00047758,113290.0,113280.0,1.02825296]
[1754184218866,0.00047758,113290.0,113280.0,1.02525296]
[1754184219076,0.00047758,113290.0,113280.0,1.02825296]
[1754184219292,0.00047758,113290.0,113280.0,1.02425296]
[1754184219765,0.00047758,113290.0,113280.0,1.02625296]
[1754184220004,0.00047758,113290.0,113280.0,1.02525296]
[1754184220242,0.00047758,113290.0,113280.0,1.03125296]
[1754184224587,0.00047758,113290.0,113280.0,0.71838684]
[1754184224797,0.00047758,113290.0,113280.0,1.03121296]
[1754184225038,0.00047758,113290.0,113280.0,0.55766684]
[1754184225268,0.00047758,113290.0,113280.0,0.66694386]
[1754184226206,0.00047758,113290.0,113280.0,0.69194386]
[1754184226426,0.00047758,113290.0,113280.0,0.68194386]
[1754184226635,0.00047758,113290.0,113280.0,0.68494386]
[1754184226850,0.00047758,113290.0,113280.0,0.75378142]
[1754184227968,0.01160993,113320.0,113280.0,0.77878142]
[1754184228180,0.01987509,113320.0,113300.0,0.01744902]
[1754184228391,0.00826516,113320.0,113310.0,0.13568]
[1754184230090,0.00826516,113320.0,113310.0,0.13768]
[1754184230288,0.00826516,113320.0,113310.0,0.16205619]
[1754184230918,0.00827107,113320.0,113310.0,0.16205619]
[1754184231140,0.00827107,113320.0,113310.0,0.02637619]
[1754184231361,0.00827107,113320.0,113310.0,0.16205619]
[1754184231568,0.00827107,113320.0,113310.0,0.13768]
[1754184232000,0.00827107,113320.0,113310.0,0.002]
[1754184232193,0.00827107,113320.0,113310.0,0.13768]
[1754184232629,0.02281965,113320.0,113310.0,0.28527819]
[1754184232815,0.00827107,113320.0,113310.0,0.28307186]
[1754184233010,0.00827107,113320.0,113310.0,0.34266166]
[1754184233996,0.00827107,113320.0,113310.0,0.92518778]
[1754184234319,0.0004,113330.0,113320.0,0.01744902]
[1754184234476,0.00867167,113330.0,113320.0,0.147598]
[1754184235494,0.008756,113330.0,113320.0,0.147598]
[1754184235741,0.008756,113330.0,113320.0,0.15829508]
[1754184236331,0.009756,113330.0,113320.0,0.15829508]
[1754184236764,0.009756,113330.0,113320.0,0.15608894]
[1754184236960,0.009756,113330.0,113320.0,0.14539186]
[1754184237139,0.008756,113330.0,113320.0,0.13568]
[1754184237584,0.008756,113330.0,113320.0,0.13668]
[1754184237986,0.008756,113330.0,113320.0,0.13768]
[1754184238417,0.008756,113330.0,113320.0,0.002]
[1754184239530,0.008756,113330.0,113320.0,0.001]
[1754184239740,0.008756,113330.0,113310.0,0.13568]
[1754184239938,0.008756,113330.0,113310.0,0.179612]
[1754184240147,0.00975544,113330.0,113310.0,0.179612]
[1754184240346,0.00975544,113330.0,113310.0,0.13568]
[1754184240804,0.00975544,113330.0,113300.0,0.30364]
[1754184240976,0.00875544,113330.0,113310.0,0.13564]
[1754184241317,0.00975544,113330.0,113310.0,0.13564]
[1754184241741,0.00975544,113330.0,113310.0,0.16843]
[1754184241954,0.00975544,113330.0,113310.0,0.212542]
[1754184242811,0.00975544,113330.0,113310.0,0.13564]
[1754184243032,0.01075544,113330.0,113310.0,0.13564]
[1754184243255,0.01075544,113330.0,113300.0,0.30548]
[1754184243471,5.28958984,113330.0,113290.0,0.03279]
[1754184243684,0.02730384,113330.0,113290.0,0.16843]
[1754184243893,0.05269723,113330.0,113300.0,0.13564]
[1754184244104,0.05269723,113330.0,113290.0,0.0546669]
[1754184244314,0.05069723,113330.0,113300.0,0.13564]
[1754184244534,0.52630384,113330.0,113290.0,0.17142]
[1754184244744,0.52730384,113330.0,113290.0,0.17142]
[1754184244954,0.52730384,113330.0,113300.0,0.03279]
[1754184245178,0.026543,113320.0,113300.0,0.03279]
[1754184245386,0.03481411,113320.0,113300.0,0.03279]
[1754184245602,0.03481411,113320.0,113300.0,0.03578]
[1754184247356,0.026543,113320.0,113300.0,0.03578]
[1754184248406,4.581042,113330.0,113300.0,0.03578]
[1754184248625,0.00826856,113330.0,113300.0,0.03578]
[1754184248870,0.53481156,113330.0,113300.0,0.03578]
[1754184249296,0.53481156,113330.0,113300.0,0.052922]
[1754184249802,0.53681156,113330.0,113300.0,0.052922]
[1754184250628,0.53681055,113330.0,113300.0,0.052922]
[1754184253488,0.53681008,113330.0,113300.0,0.052922]
[1754184255200,0.53681008,113330.0,113300.0,0.020132]
[1754184255409,0.53681008,113330.0,113310.0,0.03279]
[1754184255616,0.53681008,113330.0,113310.0,0.0380822]
[1754184256000,0.53681008,113330.0,113310.0,0.03279]
[1754184256209,0.53581008,113330.0,113310.0,0.03279]
[1754184256554,0.53481008,113330.0,113310.0,0.03279]
[1754184256761,0.03481008,113330.0,113310.0,0.03279]
[1754184256971,0.03581008,113330.0,113310.0,0.03279]
[1754184257181,0.03581008,113330.0,113310.0,0.0410722]
[1754184257394,0.001,113330.0,113320.0,0.00299]
[1754184257603,0.001,113330.0,113320.0,0.03578]
[1754184257794,0.001,113330.0,113320.0,0.03781]
[1754184258036,0.002,113330.0,113320.0,0.03781]
[1754184258745,0.001,113330.0,113320.0,0.03781]
[1754184258977,0.002,113330.0,113320.0,0.03781]
[1754184260210,0.001,113330.0,113320.0,0.03781]
[1754184260650,0.002,113330.0,113320.0,0.03781]
[1754184260864,0.04134488,113340.0,113320.0,0.03781]
[1754184261014,0.04134488,113340.0,113320.0,0.05283742]
[1754184261015,0.04961014,113340.0,113320.0,0.05283742]
[1754184261394,0.01480388,113340.0,113330.0,0.03578]
[1754184261642,0.01480388,113340.0,113330.0,0.03781]
[1754184261850,0.13564,113350.0,113330.0,0.03781]
[1754184262071,0.14390489,113350.0,113330.0,0.03781]
[1754184262734,0.15750188,113350.0,113330.0,0.03781]
[1754184264380,0.15850188,113350.0,113330.0,0.03781]
[1754184264971,0.15950188,113350.0,113330.0,0.03781]
[1754184269390,0.15950188,113350.0,113330.0,0.04339274]
[1754184269601,0.15950188,113350.0,113340.0,0.03368]
[1754184270021,0.02386188,113350.0,113340.0,0.03368]
[1754184270229,0.15950188,113350.0,113340.0,0.03368]
[1754184270653,0.15750188,113350.0,113340.0,0.03368]
[1754184270889,0.15850188,113350.0,113340.0,0.03368]
[1754184271149,0.15950188,113350.0,113340.0,0.03368]
[1754184272004,0.02386188,113350.0,113340.0,0.03368]
[1754184272359,0.15950188,113350.0,113340.0,0.03368]
[1754184273592,0.15123699,113350.0,113340.0,0.03368]
[1754184273812,0.15950637,113350.0,113340.0,0.03368]
[1754184279512,0.1595079,113350.0,113340.0,0.03368]
[1754184280250,0.21213249,113350.0,113340.0,0.03368]
[1754184280499,0.1595079,113350.0,113330.0,0.03667]
[1754184281263,0.1595079,113350.0,113330.0,0.03368]
[1754184281529,0.1585079,113350.0,113320.0,0.0368432]
[1754184281801,4.581042,113340.0,113320.0,0.0368432]
[1754184282084,4.67815047,113340.0,113320.0,0.0368432]
[1754184282338,0.1356,113330.0,113320.0,0.0338232]
[1754184284095,0.1356,113330.0,113320.0,0.0368432]
[1754184285116,0.1356,113330.0,113320.0,0.0388432]
[1754184285609,0.14387864,113330.0,113320.0,0.0388432]
[1754184285814,0.14387854,113330.0,113320.0,0.0378432]
[1754184286671,0.14387854,113330.0,113320.0,0.0368432]
[1754184289117,0.14387854,113330.0,113320.0,0.0338232]
[1754184289529,0.14387854,113330.0,113320.0,0.0001432]
[1754184290580,4.72492054,113330.0,113320.0,0.0001432]
[1754184291149,4.72492066,113330.0,113320.0,0.0001432]
[1754184291558,4.75146666,113330.0,113320.0,0.0001432]
[1754184291959,4.7680206,113330.0,113320.0,0.0001432]
[1754184292750,4.7690206,113330.0,113320.0,0.0001432]
[1754184292954,0.1879786,113330.0,113320.0,0.0001432]
[1754184293209,0.1879786,113330.0,113320.0,0.0338232]
[1754184293391,0.1889786,113330.0,113320.0,0.0338232]
[1754184293998,0.14587866,113330.0,113320.0,0.0338232]
[1754184294170,0.01027866,113330.0,113320.0,0.0368432]
[1754184294375,0.14591866,113330.0,113320.0,0.0368432]
[1754184295834,0.19716493,113330.0,113320.0,0.0338232]
[1754184296281,0.19716493,113330.0,113320.0,0.0001432]
[1754184296922,0.14590997,113330.0,113320.0,0.0001432]
[1754184297130,4.72695197,113330.0,113320.0,0.0001432]
[1754184297792,4.59131197,113330.0,113320.0,0.0001432]
[1754184297999,0.14586997,113330.0,113320.0,0.0338232]
[1754184300565,0.17241597,113330.0,113320.0,0.0338232]
[1754184301653,0.22365757,113330.0,113320.0,0.0338232]
[1754184302076,0.17241597,113330.0,113320.0,0.0338232]
[1754184302282,0.17241597,113330.0,113320.0,0.0369932]
[1754184302495,0.17241597,113330.0,113320.0,0.0390632]
[1754184302706,0.14586997,113330.0,113320.0,0.0390632]
[1754184305556,0.01026997,113330.0,113320.0,0.0390632]
[1754184305772,0.14586997,113330.0,113320.0,0.0390632]
[1754184305989,0.01026997,113330.0,113320.0,0.0390632]
[1754184306174,0.14586997,113330.0,113320.0,0.0390632]
[1754184306582,0.01026997,113330.0,113320.0,0.0390632]
[1754184307221,0.00926997,113330.0,113320.0,0.0390632]
[1754184307425,0.00927103,113330.0,113320.0,0.0390632]
[1754184307639,0.00827103,113330.0,113320.0,0.0390632]
[1754184309232,0.6356,113340.0,113320.0,0.0390632]
[1754184309456,0.6438738,113340.0,113330.0,0.00317]
[1754184309656,0.6438738,113340.0,113330.0,0.00524]
[1754184309868,0.6438738,113340.0,113330.0,0.03826]
[1754184312324,0.6448738,113340.0,113330.0,0.03826]
[1754184314041,0.6458738,113340.0,113330.0,0.03826]
[1754184315852,0.6448738,113340.0,113330.0,0.03826]
[1754184316271,0.6458738,113340.0,113330.0,0.03826]
[1754184318075,0.0102738,113340.0,113330.0,0.03826]
[1754184318291,0.1458738,113340.0,113330.0,0.03826]
[1754184318452,0.0102738,113340.0,113330.0,0.03826]
[1754184318714,0.1458738,113340.0,113330.0,0.03826]
[1754184318867,0.01359699,113350.0,113330.0,0.03826]
[1754184319089,0.14387355,113350.0,113340.0,0.00317]
[1754184319264,0.14387355,113350.0,113340.0,0.03826]
[1754184319693,0.00827355,113350.0,113340.0,0.03826]
[1754184319899,0.14387355,113350.0,113340.0,0.03826]
[1754184320705,0.15195681,113350.0,113340.0,0.03826]
[1754184321738,0.15195681,113350.0,113340.0,0.03302]
[1754184322499,0.15195681,113350.0,113340.0,0.03619]
[1754184323181,0.15195681,113350.0,113340.0,0.03826]
[1754184323778,0.14368326,113350.0,113340.0,0.03826]
[1754184324436,0.026537,113360.0,113340.0,0.03302]
[1754184324669,4.877269,113350.0,113330.0,0.03619]
[1754184324879,4.377269,113350.0,113330.0,0.03302]
[1754184325786,0.13556,113340.0,113330.0,0.03302]
[1754184325991,0.13556,113340.0,113330.0,0.03619]
[1754184327065,0.13556,113340.0,113330.0,0.03302]
[1754184327477,0.13556,113340.0,113330.0,0.03719]
[1754184327631,0.13556,113340.0,113330.0,0.03819]
[1754184328027,0.13556,113340.0,113330.0,0.04026]
[1754184329564,0.162099,113340.0,113330.0,0.04026]
[1754184329967,0.13556,113340.0,113330.0,0.04026]
[1754184330577,0.162099,113340.0,113330.0,0.04026]
[1754184331029,0.13556,113340.0,113330.0,0.04026]
[1754184331219,0.162099,113340.0,113330.0,0.04026]
[1754184331655,0.13556,113340.0,113330.0,0.04026]
[1754184335353,0.162099,113340.0,113330.0,0.04026]
[1754184335632,0.13556,113340.0,113330.0,0.04026]
[1754184336408,0.162099,113340.0,113330.0,0.04026]
[1754184336639,0.13556,113340.0,113330.0,0.04026]
[1754184338982,0.16998396,113350.0,113330.0,0.04026]
[1754184339221,0.17826057,113350.0,113330.0,0.03709]
[1754184339448,0.17826057,113350.0,113340.0,0.00294]
[1754184339657,0.17826057,113350.0,113340.0,0.00505]
[1754184339867,0.17826057,113350.0,113340.0,0.03599]
[1754184340118,0.04270057,113350.0,113340.0,0.03599]
[1754184340353,0.17826057,113350.0,113340.0,0.03599]
[1754184341328,0.04270057,113350.0,113340.0,0.03599]
[1754184341762,0.01616157,113350.0,113340.0,0.03599]
[1754184343034,0.01616429,113350.0,113340.0,0.03599]
[1754184343566,0.01616497,113350.0,113340.0,0.03599]
[1754184343854,0.00788496,113350.0,113340.0,0.03599]
[1754184344400,0.162096,113360.0,113340.0,0.03599]
[1754184344755,0.17822137,113360.0,113350.0,0.00294]
[1754184345080,0.17822137,113360.0,113350.0,0.03599]
[1754184345333,0.01612537,113360.0,113350.0,0.03599]
[1754184345834,0.00784482,113360.0,113350.0,0.03599]
[1754184346384,0.0002,113370.0,113350.0,0.03599]
[1754184346643,0.00847647,113370.0,113350.0,0.03305]
[1754184346841,0.00847647,113370.0,113360.0,0.00294]
[1754184347102,0.00847647,113370.0,113360.0,0.00505]
[1754184347366,0.00847647,113370.0,113360.0,0.03599]
[1754184348075,0.00847647,113370.0,113360.0,0.0361332]
[1754184350300,0.01649713,113370.0,113360.0,0.0361332]
[1754184351392,0.01648696,113370.0,113360.0,0.0361332]
[1754184351987,0.01648696,113370.0,113360.0,0.0371332]
[1754184352224,0.01648696,113370.0,113360.0,0.0381332]
[1754184357933,0.00722066,113370.0,113360.0,0.0381332]
[1754184358140,0.02103146,113370.0,113360.0,0.0381332]
[1754184358404,0.0138108,113370.0,113360.0,0.0381332]
[1754184360696,0.02181982,113370.0,113360.0,0.0381332]
[1754184360932,0.03007732,113370.0,113360.0,0.0021432]
[1754184361161,0.03007732,113370.0,113360.0,0.0339532]
[1754184361398,0.03007738,113370.0,113360.0,0.0339532]
[1754184361864,0.03007738,113370.0,113360.0,0.0371432]
[1754184363395,0.53007738,113370.0,113360.0,0.0021432]
[1754184364336,0.66555738,113370.0,113360.0,0.0021432]
[1754184364573,0.65174658,113370.0,113360.0,0.0021432]
[1754184364786,0.67827858,113370.0,113360.0,0.0011432]
[1754184365240,0.67827858,113370.0,113360.0,0.0001432]
[1754184365761,0.67927858,113370.0,113360.0,0.0001432]
[1754184366024,0.17927858,113370.0,113360.0,0.0001432]
[1754184366274,0.17927858,113370.0,113360.0,0.0319532]
[1754184366805,0.18027858,113370.0,113360.0,0.0319532]
[1754184368833,0.19408989,113370.0,113360.0,0.0319532]
[1754184369325,0.19408989,113370.0,113360.0,0.0351432]
[1754184369734,0.19410164,113370.0,113360.0,0.0351432]
[1754184371285,0.05862164,113370.0,113360.0,0.0371632]
[1754184372180,0.05762164,113370.0,113360.0,0.0371632]
[1754184373594,0.05662164,113370.0,113360.0,0.0371632]
[1754184375117,0.04835233,113370.0,113360.0,0.0371632]
[1754184375327,0.05663048,113370.0,113360.0,0.0371632]
[1754184377591,0.04281917,113370.0,113360.0,0.0371632]
[1754184380289,0.05663071,113370.0,113360.0,0.0371632]
[1754184382622,0.03009871,113370.0,113360.0,0.0371632]
[1754184386454,0.37009871,113370.0,113360.0,0.0371632]
[1754184388091,0.35628717,113370.0,113360.0,0.0371632]
[1754184388954,0.34800902,113370.0,113360.0,0.0371632]
[1754184389166,0.35629105,113370.0,113360.0,0.0371632]
[1754184389803,0.37010263,113370.0,113360.0,0.0371632]
[1754184390632,0.39663463,113370.0,113360.0,0.0371632]
[1754184391053,0.05663463,113370.0,113360.0,0.0371632]
[1754184391280,0.03010263,113370.0,113360.0,0.0371632]
[1754184394283,0.01629105,113370.0,113360.0,0.0371632]
[1754184394712,0.01629105,113370.0,113360.0,0.0391632]
[1754184395750,0.00800902,113370.0,113360.0,0.0391632]
[1754184396206,0.1791584,113380.0,113360.0,0.0391632]
[1754184396429,0.18743911,113380.0,113370.0,0.00311]
[1754184396645,0.52743911,113380.0,113370.0,0.03617]
[1754184397466,0.54124952,113380.0,113370.0,0.03617]
[1754184397917,0.53624952,113380.0,113370.0,0.03617]
[1754184399324,0.04908561,113380.0,113370.0,0.03617]
[1754184401987,0.04908561,113380.0,113370.0,0.03717]
[1754184402513,0.04908561,113380.0,113370.0,0.03817]
[1754184404905,0.0408049,113380.0,113370.0,0.03817]
[1754184409190,0.02599981,113380.0,113370.0,0.14425186]
[1754184409391,0.0121894,113380.0,113370.0,0.26068596]
[1754184409637,0.0121894,113380.0,113370.0,0.39608596]
[1754184409857,0.0056894,113380.0,113370.0,0.39608596]
[1754184410079,0.0004,113390.0,113380.0,0.16054902]
[1754184410260,0.0004,113390.0,113380.0,0.59391554]
[1754184411567,0.0004,113390.0,113380.0,0.27765186]
[1754184412189,0.0004,113390.0,113380.0,0.28565186]
[1754184412607,0.0004,113390.0,113380.0,0.27765186]
[1754184412990,0.00243,113390.0,113380.0,0.12980284]
[1754184413184,0.00243,113390.0,113380.0,0.26820284]
[1754184413384,0.00243,113390.0,113380.0,0.15962312]
[1754184413591,0.0004,113390.0,113380.0,0.26820284]
[1754184414212,0.0004,113390.0,113380.0,0.26320284]
[1754184414393,0.0004,113390.0,113380.0,0.26020284]
[1754184414596,0.0004,113390.0,113380.0,0.26320284]
[1754184414790,0.0004,113390.0,113380.0,0.26520284]
[1754184415425,0.0004,113390.0,113380.0,0.29172312]
[1754184417072,0.0004,113390.0,113380.0,0.30917214]
[1754184417273,0.01420586,113390.0,113380.0,0.30917214]
[1754184419120,0.01420586,113390.0,113380.0,0.62199826]
[1754184419896,0.01420586,113390.0,113380.0,0.35917214]
[1754184420109,0.01420586,113390.0,113380.0,0.67199826]
[1754184420354,0.0004,113390.0,113380.0,0.67199826]
[1754184421274,0.0004,113390.0,113380.0,0.35917214]
[1754184421550,0.0004,113390.0,113380.0,0.67199826]
[1754184423749,0.0004,113390.0,113380.0,0.69853055]
[1754184424244,0.0004,113390.0,113380.0,0.38570443]
[1754184424477,0.0004,113390.0,113380.0,0.36158443]
[1754184424691,0.01420412,113390.0,113380.0,0.33658443]
[1754184424934,0.01420412,113390.0,113380.0,0.36158443]
[1754184425419,0.01420412,113390.0,113380.0,0.33666443]
[1754184425655,0.01957412,113390.0,113380.0,0.26099284]
[1754184427511,0.01957412,113390.0,113380.0,0.005]
[1754184427757,0.00864391,113390.0,113380.0,0.17275]
[1754184428014,0.00254,113390.0,113380.0,0.17475]
[1754184428261,0.00254,113390.0,113380.0,0.26338284]
[1754184428523,0.00577,113390.0,113380.0,0.005]
[1754184428786,0.02782184,113390.0,113380.0,0.002]
[1754184429057,4.74895184,113390.0,113380.0,0.002]
[1754184429302,4.85428485,113390.0,113380.0,0.002]
[1754184429563,0.17639987,113380.0,113360.0,0.0001432]
[1754184429831,4.719409,113370.0,113360.0,0.0001432]
[1754184430098,4.92906336,113370.0,113360.0,0.0001432]
[1754184430429,0.34,113340.0,113300.0,0.03135]
[1754184430683,0.4859254,113340.0,113310.0,0.07071198]